bitfinex/quotes_SOLUSD_20240726
["timestamp","ask_amount","ask_price","bid_price","bid_amount"]
[1722026990878,45.0,181.67,181.65,13.7621]
[1722026991971,5.5039,181.69,181.65,13.7621]
[1722026991972,13.09,181.69,181.65,19.2671]
[1722026992355,18.5941,181.69,181.65,13.7621]
[1722026992672,13.09,181.68,181.65,13.7621]
[1722026993671,13.09,181.68,181.65,19.2671]
[1722026994047,56.9122,181.75,181.65,14.86300201]
[1722026994244,5.5029,181.73,181.68,5.5039]
[1722026994548,13.09,181.71,181.68,5.5039]
[1722026994753,13.09,181.71,181.67,19.265]
[1722026995580,5.5025,181.74,181.67,26.8506]
[1722026995879,18.5925,181.74,181.69,5.5038]
[1722026996189,18.5921,181.75,181.7,18.5935]
[1722026997760,50.5023,181.74,181.7,18.5935]
[1722026998076,50.5023,181.74,181.7,5.5035]
[1722026999179,50.5023,181.74,181.69,32.3529]
[1722027000276,13.09,181.73,181.67,13.09]
[1722027000476,13.09,181.73,181.68,1.10063057]
[1722027000980,18.5927,181.73,181.68,5.5039]
[1722027001151,18.593,181.72,181.67,18.5944]
[1722027001357,18.5926,181.73,181.68,5.504]
[1722027002180,18.5926,181.73,181.69,5.5038]
[1722027002481,63.5924,181.74,181.69,5.5038]
[1722027002986,22.62274973,181.79,181.69,13.09]
[1722027003179,5.5017,181.77,181.72,18.5929]
[1722027003399,5.5018,181.76,181.72,5.5029]
[1722027003570,18.5918,181.76,181.71,5.5032]
[1722027003961,13.09,181.75,181.71,5.5032]
[1722027004386,18.592,181.75,181.71,5.5032]
[1722027005775,13.09,181.75,181.71,5.5032]
[1722027006586,18.5926,181.74,181.7,13.7583]
[1722027006763,50.5028,181.73,181.69,15.4334]
[1722027008175,50.5028,181.73,181.66,19.2659]
[1722027008176,13.09,181.7,181.66,19.2659]
[1722027008582,13.09,181.7,181.67,5.5043]
[1722027009290,18.5932,181.71,181.67,5.5043]
[1722027009477,13.09,181.71,181.67,5.5043]
[1722027010391,13.09,181.71,181.68,5.504]
[1722027011061,18.5929,181.72,181.68,5.504]
[1722027011261,45.0,181.71,181.68,5.504]
[1722027011563,14.19194973,181.7,181.66,19.2659]
[1722027011761,13.09,181.7,181.66,19.2659]
[1722027011976,13.09,181.68,181.66,13.7612]
[1722027013487,13.09,181.68,181.66,19.2659]
[1722027013666,13.09,181.68,181.64,5.5051]
[1722027013867,13.09,181.67,181.64,5.5051]
[1722027014770,13.09,181.67,181.65,5.505]
[1722027015191,13.09,181.67,181.64,5.5053]
[1722027015803,58.09,181.66,181.63,19.2695]
[1722027016185,13.09,181.65,181.63,19.2695]
[1722027017094,58.09,181.66,181.63,19.2695]
[1722027017598,45.0,181.66,181.63,19.2695]
[1722027018881,45.0,181.66,181.64,5.5053]
[1722027019588,5.5042,181.68,181.64,5.5053]
[1722027019589,45.0,181.67,181.64,5.5053]
[1722027020701,5.5035,181.71,181.66,5.5045]
[1722027021011,13.09,181.69,181.66,5.5045]
[1722027021182,45.0,181.68,181.66,5.5045]
[1722027021686,45.0,181.68,181.65,19.2672]
[1722027023816,45.0,181.68,181.65,13.7622]
[1722027024814,50.5042,181.68,181.64,18.5953]
[1722027026806,50.5042,181.68,181.64,13.09]
[1722027027203,5.5045,181.67,181.63,18.5956]
[1722027027716,45.0,181.68,181.59,13.7672]
[1722027027886,18.5956,181.64,181.59,19.2738]
[1722027028094,18.5951,181.65,181.6,5.5065]
[1722027028386,45.0,181.68,181.6,5.5065]
[1722027028387,50.5054,181.64,181.6,18.5965]
[1722027028785,45.0,181.64,181.6,18.5965]
[1722027029715,2.21199028,181.75,181.67,5.5042]
[1722027029889,13.09,181.71,181.65,13.09]
[1722027030091,13.09,181.73,181.67,13.09]
[1722027030383,13.09,181.73,181.68,13.09]
[1722027030606,18.5927,181.73,181.68,18.5941]
[1722027030995,5.5009,181.79,181.71,13.09]
[1722027031206,5.5009,181.79,181.65,44.0554]
[1722027031207,18.5911,181.78,181.73,13.09]
[1722027031517,5.5011,181.78,181.73,13.09]
[1722027031894,18.591,181.79,181.74,5.5023]
[1722027032221,13.09,181.79,181.73,13.09]
[1722027032513,13.09,181.78,181.72,26.8472]
[1722027032820,5.502,181.76,181.71,18.593]
[1722027033424,13.09,181.75,181.7,13.09]
[1722027033917,18.5921,181.75,181.7,18.5935]
[1722027034221,5.5021,181.75,181.7,18.5935]
[1722027034424,5.5023,181.74,181.69,32.3533]
[1722027035015,5.5023,181.74,181.7,1.10056856]
[1722027035523,5.5023,181.74,181.7,6.60406856]
[1722027035897,18.5921,181.75,181.7,6.60406856]
[1722027036202,45.0,181.74,181.7,18.5935]
[1722027039221,50.5023,181.74,181.7,18.5935]
[1722027039922,13.09,181.79,181.74,5.502]
[1722027040140,13.09,181.79,181.75,5.5019]
[1722027041139,13.09,181.79,181.74,13.09]
[1722027041140,18.5909,181.79,181.74,13.09]
[1722027041341,13.09,181.79,181.75,5.502]
[1722027041642,18.5906,181.8,181.76,5.5017]
[1722027041842,18.5906,181.8,181.75,6.60227653]
[1722027042334,18.5906,181.8,181.74,26.8454]
[1722027042335,5.5012,181.78,181.74,26.8454]
[1722027042533,5.5015,181.77,181.73,13.09]
[1722027042835,18.5915,181.77,181.72,28.1366]
[1722027043212,18.5915,181.77,181.72,33.6395]
[1722027043412,18.5915,181.77,181.73,1.10039939]
[1722027043621,18.5915,181.77,181.73,6.60299939]
[1722027043845,5.5015,181.77,181.73,19.69299939]
[1722027044526,16.2565,181.82,181.76,13.09]
[1722027044721,13.09,181.84,181.78,13.09]
[1722027045322,5.4998,181.83,181.78,18.5909]
[1722027045845,5.4999,181.82,181.78,18.5909]
[1722027046627,45.0,181.81,181.78,18.5909]
[1722027047135,45.0,181.81,181.78,13.09]
[1722027047351,45.0,181.81,181.77,5.5013]
[1722027047640,50.5003,181.81,181.77,5.5013]
[1722027048237,50.5003,181.81,181.76,32.3457]
[1722027048441,45.0,181.81,181.77,5.5014]
[1722027049144,45.0,181.81,181.77,18.5914]
[1722027049659,45.0,181.81,181.78,5.5011]
[1722027050150,45.0,181.81,181.77,5.5014]
[1722027050323,5.5007,181.8,181.76,13.754]
[1722027050521,18.5907,181.8,181.76,13.754]
[1722027050833,5.5008,181.79,181.76,13.754]
[1722027051233,13.09,181.8,181.76,13.754]
[1722027051438,45.0,181.79,181.76,13.754]
[1722027051821,45.0,181.79,181.75,5.502]
[1722027051822,50.5009,181.79,181.75,5.502]
[1722027052041,50.5009,181.79,181.74,18.5922]
[1722027052413,63.5909,181.79,181.74,5.5022]
[1722027052816,63.5909,181.79,181.75,5.502]
[1722027053233,18.5914,181.77,181.73,13.7564]
[1722027053539,14.19194973,181.76,181.72,5.5028]
[1722027053855,13.09,181.75,181.72,5.5028]
[1722027054037,13.09,181.76,181.72,5.5028]
[1722027054225,13.09,181.76,181.73,5.5025]
[1722027054425,13.09,181.77,181.73,5.5025]
[1722027054645,60.173,181.79,181.73,13.09]
[1722027054820,58.09,181.79,181.75,5.5019]
[1722027055018,63.5909,181.79,181.75,5.5019]
[1722027055552,58.09,181.79,181.75,5.5019]
[1722027055722,63.5908,181.79,181.75,5.5019]
[1722027055927,63.5908,181.79,181.74,32.3476]
[1722027056128,13.09,181.78,181.74,19.2576]
[1722027058434,63.5908,181.79,181.74,19.2576]
[1722027061843,63.5908,181.79,181.75,5.502]
[1722027062153,13.09,181.81,181.76,5.5017]
[1722027062347,50.5005,181.8,181.76,6.60190085]
[1722027062532,5.5003,181.81,181.77,1.10019876]
[1722027063356,5.5006,181.8,181.77,1.10019876]
[1722027064054,5.501,181.79,181.75,13.09]
[1722027064253,13.09,181.8,181.74,26.8453]
[1722027064454,14.85054973,181.84,181.74,26.8453]
[1722027064455,5.5011,181.78,181.74,26.8453]
[1722027065258,5.5015,181.77,181.73,5.5025]
[1722027065573,50.5015,181.77,181.73,5.5025]
[1722027066646,45.0,181.77,181.73,5.5025]
[1722027067433,45.0,181.77,181.74,5.5023]
[1722027068641,45.0,181.77,181.73,5.5026]
[1722027068846,58.09,181.77,181.71,26.8477]
[1722027069069,13.09,181.75,181.72,5.5027]
[1722027070046,13.09,181.76,181.73,5.5026]
[1722027070249,58.09,181.77,181.73,5.5026]
[1722027071290,58.09,181.77,181.74,5.5022]
[1722027071963,58.09,181.77,181.73,5.5025]
[1722027073264,63.5916,181.77,181.73,5.5025]
[1722027074581,58.09,181.77,181.73,5.5025]
[1722027074952,58.09,181.77,181.74,5.5023]
[1722027075449,16.58034973,181.84,181.73,26.8459]
[1722027075651,13.09,181.79,181.74,13.09]
[1722027075849,13.09,181.79,181.75,5.502]
[1722027076068,14.19194973,181.79,181.75,5.502]
[1722027076279,19.69274973,181.79,181.75,5.502]
[1722027077279,18.5908,181.79,181.75,5.502]
[1722027077590,13.09,181.77,181.73,19.2584]
[1722027077769,45.0,181.76,181.73,13.7559]
[1722027078593,13.09,181.75,181.72,5.5029]
[1722027078819,13.09,181.75,181.69,27.5184]
[1722027078820,13.09,181.75,181.71,5.5031]
[1722027078965,13.09,181.74,181.7,13.7587]
[1722027079487,13.09,181.74,181.7,19.2622]
[1722027079968,58.09,181.73,181.7,19.2622]
[1722027080167,13.09,181.72,181.7,19.2622]
[1722027080889,58.09,181.73,181.7,19.2622]
[1722027081082,58.09,181.73,181.7,13.7587]
[1722027081283,18.5931,181.72,181.66,26.8512]
[1722027081486,58.09,181.71,181.66,19.2657]
[1722027081686,13.09,181.7,181.66,19.2657]
[1722027081872,45.0,181.69,181.66,19.2657]
[1722027082077,58.09,181.69,181.66,13.7612]
[1722027084175,58.09,181.69,181.66,19.2659]
[1722027084387,13.09,181.71,181.68,5.5041]
[1722027084581,18.5924,181.74,181.69,18.5937]
[1722027084893,45.0,181.73,181.69,5.5037]
[1722027085111,58.09,181.73,181.69,5.5037]
[1722027085579,63.5926,181.73,181.68,5.5041]
[1722027086393,50.5026,181.73,181.68,18.5941]
[1722027086600,7.38804973,181.78,181.71,18.5929]
[1722027086601,18.592,181.76,181.71,18.5929]
[1722027086795,13.09,181.78,181.73,13.09]
[1722027087210,5.5011,181.78,181.73,13.09]
[1722027087399,18.5911,181.78,181.73,13.09]
[1722027087887,5.5014,181.77,181.73,13.09]
[1722027088089,13.09,181.78,181.72,13.09]
[1722027088090,5.5017,181.76,181.72,13.09]
[1722027088412,5.5015,181.77,181.72,18.5929]
[1722027088610,45.0,181.76,181.72,18.5929]
[1722027089116,45.0,181.76,181.72,5.5029]
[1722027090020,50.5018,181.76,181.71,19.2607]
[1722027090708,45.0,181.76,181.72,5.5029]
[1722027091403,16.2606,181.82,181.73,1.1003763]
[1722027091587,5.5003,181.81,181.76,5.5017]
[1722027092505,5.5005,181.8,181.76,5.5017]
[1722027092704,5.5005,181.8,181.74,1.10019713]
[1722027093186,5.5005,181.8,181.75,5.502]
[1722027093386,5.5005,181.8,181.76,1.10022349]
[1722027094720,5.5008,181.79,181.76,1.10022349]
[1722027095109,5.5005,181.8,181.75,5.502]
[1722027095429,5.5002,181.81,181.76,5.5017]
[1722027095719,5.5002,181.81,181.77,1.10016279]
[1722027096085,5.5005,181.8,181.75,5.502]
[1722027096286,5.5009,181.79,181.73,19.2584]
[1722027096595,13.7489,181.84,181.73,19.2584]
[1722027096795,45.0,181.83,181.73,13.7561]
[1722027097107,45.0,181.83,181.74,1.10031478]
[1722027097618,5.5007,181.8,181.74,6.60231478]
[1722027097912,5.5007,181.8,181.74,5.502]
[1722027098093,5.5009,181.79,181.74,5.502]
[1722027099518,5.5011,181.78,181.74,5.502]
[1722027099892,5.5009,181.79,181.75,1.1002946]
[1722027100089,5.5009,181.79,181.75,6.6022946]
[1722027100294,5.5005,181.81,181.75,6.6022946]
[1722027100516,45.0,181.8,181.75,6.6022946]
[1722027101018,45.0,181.8,181.76,1.1002349]
[1722027101814,50.5006,181.8,181.76,1.1002349]
[1722027103519,5.5015,181.77,181.73,13.7561]
[1722027104125,5.5015,181.77,181.73,19.2587]
[1722027105527,45.0,181.8,181.7,16.0133]
[1722027105826,1.10194973,181.79,181.7,16.0133]
[1722027105989,46.10194973,181.79,181.7,16.0133]
[1722027106189,5.5022,181.75,181.7,21.5167]
[1722027106411,45.0,181.74,181.7,5.5034]
[1722027109834,58.11,181.74,181.7,5.5034]
[1722027111729,13.11,181.73,181.69,13.7589]
[1722027111902,13.11,181.73,181.66,56.861]
[1722027111903,13.11,181.71,181.66,56.861]
[1722027112105,13.11,181.71,181.68,5.5041]
[1722027112317,13.11,181.72,181.69,5.5038]
[1722027113931,13.11,181.72,181.68,5.5041]
[1722027114135,13.11,181.72,181.68,6.60479216]
[1722027114647,13.11,181.72,181.68,5.5041]
[1722027114928,18.613,181.72,181.68,5.5041]
[1722027115816,18.613,181.72,181.67,5.5044]
[1722027116134,13.11,181.71,181.67,5.5044]
[1722027116612,13.11,181.71,181.68,5.504]
[1722027117033,13.11,181.71,181.67,5.5043]
[1722027118817,13.11,181.71,181.68,5.5041]
[1722027119340,13.11,181.72,181.68,5.5041]
[1722027119531,13.11,181.71,181.68,5.5041]
[1722027120938,13.11,181.71,181.67,5.5044]
[1722027121123,13.11,181.7,181.67,5.5044]
[1722027125035,13.11,181.71,181.67,5.5044]
[1722027126837,18.6133,181.71,181.67,5.5044]
[1722027127334,13.11,181.7,181.67,5.5044]
[1722027129542,5.503,181.72,181.67,5.5044]
[1722027129744,58.11,181.71,181.67,5.5044]
[1722027130431,50.5033,181.71,181.67,5.5044]
[1722027130628,63.6133,181.71,181.67,5.5044]
[1722027130830,5.5029,181.72,181.67,5.5044]
[1722027131129,5.5029,181.72,181.68,6.60479321]
[1722027131335,18.6129,181.72,181.68,5.5041]
[1722027131836,18.6129,181.72,181.67,18.6144]
[1722027132048,5.5033,181.71,181.67,18.6144]
[1722027132236,5.5033,181.71,181.67,6.60509527]
[1722027132441,18.613,181.72,181.67,5.5044]
[1722027132927,5.5033,181.71,181.66,32.3764]
[1722027133130,5.5036,181.7,181.66,19.2664]
[1722027133333,5.5036,181.7,181.66,13.7617]
[1722027134951,5.5033,181.71,181.66,32.3762]
[1722027135244,18.6129,181.72,181.67,18.6142]
[1722027135534,13.11,181.71,181.67,5.5044]
[1722027135919,13.11,181.72,181.67,5.5044]
[1722027136133,18.613,181.72,181.67,5.5044]
[1722027137041,18.6133,181.71,181.66,32.3764]
[1722027137248,13.11,181.71,181.65,5.5049]
[1722027137440,13.11,181.71,181.65,18.6149]
[1722027137745,5.5036,181.7,181.65,18.6149]
[1722027139350,18.6133,181.71,181.66,18.6147]
[1722027143848,13.11,181.7,181.66,5.5047]
[1722027145951,5.5029,181.73,181.67,5.5043]
[1722027146251,13.11,181.71,181.67,5.5043]
[1722027147758,18.6132,181.71,181.67,5.5043]
[1722027148052,18.6132,181.71,181.66,5.5047]
[1722027148256,13.11,181.7,181.66,5.5047]
[1722027153835,13.11,181.69,181.65,13.7622]
[1722027154038,13.11,181.68,181.65,13.7622]
[1722027154241,13.11,181.68,181.65,19.2672]
[1722027155170,13.11,181.67,181.65,13.7622]
[1722027156840,34.7494,181.66,181.55,260.3]
[1722027157169,13.11,181.6,181.54,13.11]
[1722027157457,13.11,181.59,181.55,5.5078]
[1722027157666,13.11,181.58,181.55,5.5078]
[1722027159559,5.5066,181.6,181.55,5.508]
[1722027159735,13.11,181.59,181.55,5.508]
[1722027160855,18.6169,181.59,181.54,32.3889]
[1722027161031,13.11,181.58,181.54,19.2789]
[1722027161458,18.6173,181.58,181.54,13.7705]
[1722027162166,13.11,181.57,181.54,13.7705]
[1722027162338,18.6175,181.57,181.53,5.5086]
[1722027169450,13.11,181.58,181.54,5.5082]
[1722027171339,13.11,181.55,181.47,6.5352]
[1722027171661,13.11,181.53,181.48,1.10177933]
[1722027171862,18.6184,181.54,181.49,5.5098]
[1722027172465,5.5088,181.53,181.49,5.5098]
[1722027172636,13.11,181.54,181.49,5.5098]
[1722027172841,5.5081,181.55,181.5,6.61139099]
[1722027173049,5.5081,181.55,181.5,5.5096]
[1722027173256,18.6181,181.55,181.5,5.5096]
[1722027173664,18.6181,181.55,181.51,5.5092]
[1722027173871,5.5081,181.55,181.51,18.6192]
[1722027174076,13.7667,181.6,181.51,18.6192]
[1722027174077,5.5076,181.57,181.52,18.6189]
[1722027174373,18.6176,181.57,181.52,18.6189]
[1722027175059,5.5078,181.56,181.52,18.6189]
[1722027175454,5.5078,181.56,181.52,13.11]
[1722027175860,5.5082,181.55,181.51,19.2821]
[1722027176378,18.6182,181.55,181.51,19.2821]
[1722027177286,13.11,181.56,181.52,6.6105706]
[1722027177958,13.11,181.56,181.52,5.5089]
[1722027179250,5.5075,181.57,181.52,5.5089]
[1722027179469,13.11,181.56,181.52,5.5089]
[1722027179981,18.6178,181.56,181.52,5.5089]
[1722027180270,13.11,181.55,181.52,5.5089]
[1722027180580,13.11,181.56,181.52,5.5089]
[1722027181077,5.5075,181.57,181.52,5.5089]
[1722027181256,13.11,181.56,181.52,5.5089]
[1722027182852,5.5072,181.58,181.53,6.61032187]
[1722027183053,20.28873258,181.66,181.56,13.11]
[1722027183285,13.11,181.62,181.56,18.6176]
[1722027183483,18.6163,181.61,181.56,19.71898282]
[1722027183793,5.5066,181.6,181.56,19.71898282]
[1722027183979,13.11,181.61,181.56,19.71898282]
[1722027184151,5.5066,181.6,181.56,19.71898282]
[1722027185261,20.28873258,181.66,181.57,5.5073]
[1722027185466,18.6161,181.62,181.58,1.10127078]
[1722027185674,22.4146,181.67,181.59,6.60788654]
[1722027185992,5.505,181.65,181.6,5.5066]
[1722027186186,18.615,181.65,181.6,18.6166]
[1722027186360,13.11,181.65,181.61,5.5062]
[1722027186559,5.5048,181.66,181.61,5.5062]
[1722027186780,5.5048,181.66,181.61,18.6162]
[1722027186985,18.6145,181.67,181.62,6.60694616]
[1722027187166,5.5042,181.68,181.63,5.5056]
[1722027187365,18.6139,181.69,181.64,6.60622683]
[1722027187566,18.6136,181.7,181.65,5.505]
[1722027187767,5.5036,181.7,181.65,19.71560354]
[1722027188058,18.6133,181.71,181.66,5.5047]
[1722027188259,5.5033,181.71,181.66,18.6147]
[1722027188680,5.5032,181.71,181.67,5.5044]
[1722027188867,18.6132,181.71,181.66,13.11]
[1722027189178,18.6132,181.71,181.66,18.6147]
[1722027189682,5.5032,181.71,181.66,18.6147]
[1722027189873,18.6132,181.71,181.66,18.6147]
[1722027190183,15.5373,181.75,181.62,6.0543]
[1722027190184,15.5373,181.75,181.67,13.11]
[1722027190388,13.11,181.75,181.69,13.11]
[1722027190680,18.612,181.75,181.69,18.6136]
[1722027190862,13.11,181.74,181.69,18.6136]
[1722027191865,18.6123,181.74,181.69,18.6136]
[1722027194274,5.5023,181.74,181.69,18.6136]
[1722027194683,18.6128,181.73,181.68,5.5041]
[1722027194988,18.6128,181.73,181.67,32.3752]
[1722027195167,13.11,181.72,181.67,32.3752]
[1722027195369,13.11,181.7,181.67,13.7608]
[1722027195581,13.11,181.72,181.67,13.7608]
[1722027195786,18.6127,181.73,181.68,5.5041]
[1722027196466,18.6127,181.73,181.69,1.10065127]
[1722027197188,18.6127,181.73,181.68,5.5041]
[1722027197592,5.5027,181.73,181.68,18.6141]
[1722027197759,13.11,181.75,181.7,5.5035]
[1722027198180,13.11,181.75,181.7,18.6135]
[1722027198991,18.6122,181.75,181.7,18.6135]
[1722027199193,18.6124,181.74,181.69,19.2629]
[1722027199687,13.11,181.73,181.68,5.5041]
[1722027200081,5.503,181.72,181.67,18.6144]
[1722027200284,18.613,181.72,181.67,5.5044]
[1722027200891,13.11,181.73,181.69,5.5038]
[1722027201081,13.11,181.72,181.67,13.11]
[1722027201273,63.6133,181.71,181.66,34.4471]
[1722027201475,63.6133,181.71,181.67,5.5044]
[1722027202396,63.6133,181.71,181.66,34.4473]
[1722027202993,5.5036,181.7,181.66,19.2665]
[1722027203381,58.11,181.71,181.67,5.5044]
[1722027203671,58.11,181.71,181.66,13.7618]
[1722027203672,13.11,181.69,181.66,13.7618]
[1722027203872,13.11,181.68,181.64,5.5053]
[1722027204802,18.6142,181.68,181.63,19.2697]
[1722027205285,13.11,181.67,181.64,5.5053]
[1722027205488,5.5042,181.68,181.64,5.5053]
[1722027205489,13.11,181.68,181.64,5.5053]
[1722027205875,13.11,181.68,181.63,19.2697]
[1722027206204,13.11,181.67,181.64,5.5053]
[1722027206699,13.11,181.67,181.63,19.2697]
[1722027207818,13.11,181.66,181.63,13.7641]
[1722027208104,14.21194973,181.66,181.62,5.5059]
[1722027208413,19.71674973,181.66,181.62,5.5059]
[1722027208597,71.8682,181.71,181.6,26.8762]
[1722027208598,18.6155,181.64,181.6,19.2727]
[1722027211005,18.6155,181.64,181.6,13.7662]
[1722027211304,13.11,181.62,181.58,5.5072]
[1722027211510,14.21194973,181.62,181.58,5.5072]
[1722027211673,13.11,181.62,181.57,13.7685]
[1722027211878,18.616,181.62,181.57,19.2758]
[1722027212093,5.506,181.62,181.57,19.2758]
[1722027212278,18.616,181.62,181.58,5.5071]
[1722027213900,18.616,181.62,181.57,32.3859]
[1722027214719,13.11,181.61,181.57,19.2759]
[1722027215006,13.11,181.61,181.54,27.5411]
[1722027215007,19.71864973,181.6,181.55,5.5079]
[1722027215216,18.6167,181.6,181.55,5.5079]
[1722027215391,13.11,181.6,181.56,5.5077]
[1722027215582,13.11,181.6,181.57,5.5075]
[1722027216008,14.21194973,181.6,181.56,5.5077]
[1722027217007,13.11,181.6,181.56,5.5077]
[1722027217216,13.11,181.61,181.57,5.5074]
[1722027218714,13.11,181.63,181.57,13.11]
[1722027219007,45.0,181.62,181.57,13.11]
[1722027219208,45.0,181.62,181.59,5.5068]
[1722027219412,45.0,181.62,181.58,5.5071]
[1722027220316,18.6157,181.63,181.58,5.5071]
[1722027220793,5.506,181.62,181.57,18.6174]
[1722027221000,18.616,181.62,181.57,13.11]
[1722027221613,5.5064,181.61,181.57,13.11]
[1722027223116,13.11,181.6,181.52,29.861]
[1722027223304,5.5075,181.57,181.53,13.11]
[1722027223614,5.5072,181.58,181.53,18.6186]
[1722027223804,5.5072,181.58,181.54,13.11]
[1722027224208,13.11,181.58,181.52,42.971]
[1722027224399,5.5078,181.56,181.52,42.971]
[1722027224599,5.5075,181.57,181.52,48.4799]
[1722027224998,5.5075,181.57,181.53,13.11]
[1722027226007,5.5075,181.57,181.54,1.10156056]
[1722027226618,5.5075,181.57,181.53,13.11]
[1722027228419,5.5078,181.56,181.52,32.3907]
[1722027230627,22.1561,181.78,181.57,16.56]
[1722027230830,22.1561,181.78,181.69,13.11]
[1722027230831,13.11,181.75,181.69,13.11]
[1722027231136,18.6124,181.74,181.69,13.11]
[1722027231446,13.11,181.74,181.69,13.11]
[1722027231802,18.6121,181.75,181.69,13.11]
[1722027232004,22.1561,181.78,181.69,26.8696]
[1722027232205,13.11,181.75,181.71,5.5032]
[1722027232518,27.6575,181.78,181.72,13.7573]
[1722027232718,13.11,181.77,181.72,13.7573]
[1722027233009,18.6115,181.77,181.72,13.7573]
[1722027233217,5.5015,181.77,181.72,13.7573]
[1722027233512,1.10194973,181.76,181.72,13.7573]
[1722027233708,22.1561,181.78,181.72,13.7573]
[1722027234021,5.5015,181.77,181.72,19.26]
[1722027234925,5.5015,181.77,181.72,13.7573]
[1722027235230,5.502,181.75,181.69,5.5035]
[1722027235429,1.10194973,181.77,181.68,13.7599]
[1722027235639,1.10194973,181.77,181.7,13.7582]
[1722027235640,5.502,181.75,181.7,13.7582]
[1722027235807,45.0,181.74,181.7,13.7582]
[1722027236218,50.5023,181.74,181.7,13.7582]
[1722027236727,45.0,181.74,181.7,19.2616]
[1722027238438,1.10194973,181.73,181.7,13.7582]
[1722027241450,45.0,181.74,181.7,19.2617]
[1722027241643,6.60464973,181.73,181.66,13.7613]
[1722027241939,45.0,181.72,181.68,5.5041]
[1722027242142,1.10194973,181.71,181.68,5.5041]
[1722027242936,45.0,181.72,181.68,5.5041]
[1722027243136,45.0,181.72,181.69,5.5038]
[1722027243869,50.5029,181.72,181.66,13.7613]
[1722027244235,50.5029,181.72,181.67,5.5042]
[1722027244739,50.5029,181.72,181.68,5.5041]
[1722027245040,45.0,181.72,181.68,5.5041]
[1722027245247,45.0,181.72,181.71,5.5032]
[1722027245438,7.22514973,181.78,181.71,5.5032]
[1722027246060,45.0,181.77,181.72,5.5029]
[1722027246431,6.1232,181.78,181.71,5.5032]
[1722027246632,1.10194973,181.77,181.7,13.7582]
[1722027246848,1.10194973,181.76,181.67,13.7609]
[1722027247332,1.10194973,181.77,181.67,13.7609]
[1722027247732,5.5026,181.73,181.68,5.5038]
[1722027247933,45.0,181.72,181.68,5.5038]
[1722027248263,1.10194973,181.77,181.7,5.5035]
[1722027248566,5.5018,181.76,181.7,19.262]
[1722027249031,5.5015,181.77,181.7,13.7588]
[1722027249232,6.1232,181.78,181.72,13.7567]
[1722027249440,5.5011,181.78,181.73,5.5023]
[1722027249731,3.32954529,181.81,181.74,5.5022]
[1722027249937,5.5008,181.79,181.74,5.5022]
[1722027250448,5.5008,181.79,181.73,5.5026]
[1722027250660,21.4619,181.82,181.72,13.7567]
[1722027250836,5.5002,181.81,181.75,5.5017]
[1722027251237,1.10194973,181.8,181.72,13.7567]
[1722027251438,1.10194973,181.79,181.72,13.7567]
[1722027251965,5.5002,181.81,181.76,5.5017]
[1722027252268,45.0,181.8,181.76,5.5017]
[1722027253063,45.0,181.8,181.77,5.5014]